fUSD/lending_fUSD_20260522
["ID","MTS","AMOUNT","RATE_DAILY","PERIOD"]
[422800205,1779414633000,-80994.84190812,0.000137,2]
[422800196,1779414633000,-214.5700856,0.00013699,2]
[422800198,1779414633000,-500.0,0.00013699,2]
[422800194,1779414633000,-500.0,0.00013699,2]
[422800192,1779414633000,-250.0,0.00013699,2]
[422800195,1779414633000,-401.56350951,0.00013699,2]
[422800200,1779414633000,-500.0,0.00013699,2]
[422800212,1779414638000,-318.16280545,0.00013699,2]
[422800211,1779414638000,-215.23956962,0.00012382,2]
[422800219,1779414642000,-1494954.9239,0.000137,2]
[422800215,1779414642000,-271.35,0.00013272,2]
[422800216,1779414642000,-120.85690103,0.00013699,2]
[422800218,1779414642000,-4171.6214,0.000137,2]
[422800217,1779414642000,-60.98029352,0.00013699,2]
[422800225,1779414642000,-727.094656,0.000137,2]
[422800221,1779414642000,-1365.6994482,0.000137,2]
[422800223,1779414642000,-1950.0,0.000137,2]
[422800222,1779414642000,-1419.53603552,0.000137,2]
[422800224,1779414642000,-487.57579561,0.000137,2]
[422800226,1779414642000,-471.95013369,0.000137,2]
[422800220,1779414642000,-166100.6324942,0.000137,2]
[422800277,1779414643000,-769063.64818605,0.000137,2]
[422800276,1779414643000,-42.05267949,0.000137,2]
[422800297,1779414646000,-3230.1765156,0.000137,2]
[422800301,1779414646000,-11947.57819722,0.000137,2]
[422800300,1779414646000,-511.0,0.000137,2]
[422800299,1779414646000,-13485.93257033,0.000137,2]
[422800311,1779415753000,-172.46,9.859e-05,2]
[422800309,1779415753000,-250.0,7.325e-05,2]
[422800310,1779415753000,-312.85151345,8.259e-05,2]
[422800308,1779415753000,-172.46,6.659e-05,2]
[422800312,1779415772000,-151.32715924,0.00012707,2]
[422800337,1779415832000,-166.4742894,0.000136,2]
[422800347,1779415832000,-1690.2627643,0.00013698,2]
[422800346,1779415832000,-646.77472674,0.00013697,2]
[422800348,1779415832000,-1196.8126589,0.00013698,2]
[422800350,1779415832000,-10620.7543085,0.00013698,2]
[422800338,1779415832000,-3266.00310012,0.000136,2]
[422800336,1779415832000,-4752.39300445,0.00013598,2]
[422800339,1779415832000,-197.6196587,0.0001369,2]
[422800345,1779415832000,-153.059,0.00013697,2]
[422800342,1779415832000,-151.0,0.00013697,2]
[422800340,1779415832000,-150.0,0.00013696,2]
[422800354,1779415832000,-4880.8243369,0.00013698,2]
[422800360,1779415832000,-500.0,0.00013699,2]
[422800356,1779415832000,-500.0,0.00013699,2]
[422800333,1779415832000,-300.0,0.00013597,2]
[422800358,1779415832000,-433.02873729,0.00013699,2]
[422800362,1779415832000,-500.0,0.00013699,2]
[422800344,1779415832000,-2121.236,0.00013697,2]
[422800335,1779415832000,-300.0,0.00013597,2]
[422800314,1779415832000,-182.79284076,0.00012707,2]
[422800330,1779415832000,-150.0,0.00013488,2]
[422800359,1779415832000,-500.0,0.00013699,2]
[422800315,1779415832000,-210.42607263,0.00012736,2]
[422800316,1779415832000,-200.0,0.0001274,2]
[422800317,1779415832000,-150.0,0.00012764,2]
[422800318,1779415832000,-272.57419522,0.00012814,2]
[422800319,1779415832000,-420.0,0.00012814,2]
[422800320,1779415832000,-1307.42580478,0.00012814,2]
[422800324,1779415832000,-150.0,0.00013425,2]
[422800332,1779415832000,-300.0,0.00013596,2]
[422800325,1779415832000,-168.29697578,0.00013425,2]
[422800323,1779415832000,-172.46,0.00013058,2]
[422800322,1779415832000,-180.0,0.00012855,2]
[422800329,1779415832000,-172.10761975,0.00013488,2]
[422800326,1779415832000,-1200.0,0.00013487,2]
[422800328,1779415832000,-150.0,0.00013488,2]
[422800327,1779415832000,-150.0,0.00013488,2]
[422800331,1779415832000,-237.25620905,0.00013488,2]
[422800334,1779415832000,-300.0,0.00013597,2]
[422800321,1779415832000,-214.1,0.00012836,2]
[422800352,1779415832000,-228500.9708318,0.00013698,2]
[422800395,1779415832000,-500.0,0.00013699,2]
[422800365,1779415832000,-500.0,0.00013699,2]
[422800388,1779415832000,-500.0,0.00013699,2]
[422800394,1779415832000,-500.0,0.00013699,2]
[422800396,1779415832000,-500.0,0.00013699,2]
[422800390,1779415832000,-500.0,0.00013699,2]
[422800407,1779415832000,-500.0,0.00013699,2]
[422800385,1779415832000,-500.0,0.00013699,2]
[422800398,1779415832000,-500.0,0.00013699,2]
[422800408,1779415832000,-500.0,0.00013699,2]
[422800397,1779415832000,-500.0,0.00013699,2]
[422800404,1779415832000,-500.0,0.00013699,2]
[422800401,1779415832000,-500.0,0.00013699,2]
[422800400,1779415832000,-500.0,0.00013699,2]
[422800403,1779415832000,-500.0,0.00013699,2]
[422800405,1779415832000,-500.0,0.00013699,2]
[422800402,1779415832000,-500.0,0.00013699,2]
[422800406,1779415832000,-350.0,0.00013699,2]
[422800371,1779415832000,-500.0,0.00013699,2]
[422800387,1779415832000,-500.0,0.00013699,2]
[422800393,1779415832000,-500.0,0.00013699,2]
[422800399,1779415832000,-187.7791561,0.00013699,2]
[422800391,1779415832000,-500.0,0.00013699,2]
[422800392,1779415832000,-500.0,0.00013699,2]
[422800364,1779415832000,-500.0,0.00013699,2]
[422800367,1779415832000,-500.0,0.00013699,2]
[422800373,1779415832000,-500.0,0.00013699,2]
[422800372,1779415832000,-500.0,0.00013699,2]
[422800378,1779415832000,-500.0,0.00013699,2]
[422800383,1779415832000,-500.0,0.00013699,2]
[422800381,1779415832000,-500.0,0.00013699,2]
[422800382,1779415832000,-500.0,0.00013699,2]
[422800369,1779415832000,-500.0,0.00013699,2]
[422800389,1779415832000,-500.0,0.00013699,2]
[422800374,1779415832000,-335.65179351,0.00013699,2]
[422800376,1779415832000,-500.0,0.00013699,2]
[422800375,1779415832000,-500.0,0.00013699,2]
[422800377,1779415832000,-500.0,0.00013699,2]
[422800380,1779415832000,-500.0,0.00013699,2]
[422800384,1779415832000,-500.0,0.00013699,2]
[422800386,1779415832000,-500.0,0.00013699,2]
[422800379,1779415832000,-500.0,0.00013699,2]
[422800435,1779415833000,-4.17339459,0.00013699,2]
[422800436,1779415833000,-170.80213147,0.00013699,2]
[422800434,1779415833000,-333.76665068,0.00013699,2]
[422800428,1779415833000,-500.0,0.00013699,2]
[422800432,1779415833000,-500.0,0.00013699,2]
[422800431,1779415833000,-406.64501767,0.00013699,2]
[422800446,1779415833000,-500.0,0.00013699,2]
[422800433,1779415833000,-150.19905992,0.00013699,2]
[422800438,1779415833000,-500.0,0.00013699,2]
[422800444,1779415833000,-500.0,0.00013699,2]
[422800437,1779415833000,-500.0,0.00013699,2]
[422800443,1779415833000,-432.77950951,0.00013699,2]
[422800441,1779415833000,-500.0,0.00013699,2]
[422800442,1779415833000,-67.22049049,0.00013699,2]
[422800440,1779415833000,-500.0,0.00013699,2]
[422800447,1779415833000,-500.0,0.00013699,2]
[422800449,1779415833000,-500.0,0.00013699,2]
[422800456,1779415833000,-500.0,0.00013699,2]
[422800439,1779415833000,-500.0,0.00013699,2]
[422800429,1779415833000,-288.96047148,0.00013699,2]
[422800410,1779415833000,-500.0,0.00013699,2]
[422800430,1779415833000,-500.0,0.00013699,2]
[422800458,1779415833000,-500.0,0.00013699,2]
[422800420,1779415833000,-500.0,0.00013699,2]
[422800409,1779415833000,-500.0,0.00013699,2]
[422800412,1779415833000,-500.0,0.00013699,2]
[422800413,1779415833000,-500.0,0.00013699,2]
[422800411,1779415833000,-500.0,0.00013699,2]
[422800418,1779415833000,-500.0,0.00013699,2]
[422800414,1779415833000,-500.0,0.00013699,2]
[422800426,1779415833000,-500.0,0.00013699,2]
[422800416,1779415833000,-500.0,0.00013699,2]
[422800419,1779415833000,-500.0,0.00013699,2]
[422800415,1779415833000,-500.0,0.00013699,2]
[422800421,1779415833000,-500.0,0.00013699,2]
[422800424,1779415833000,-502.02688568,0.00013699,2]
[422800425,1779415833000,-500.0,0.00013699,2]
[422800422,1779415833000,-307.1690836,0.00013699,2]
[422800427,1779415833000,-500.0,0.00013699,2]
[422800423,1779415833000,-500.0,0.00013699,2]
[422800417,1779415833000,-500.0,0.00013699,2]
[422800457,1779415833000,-500.0,0.00013699,2]
[422800445,1779415833000,-500.0,0.00013699,2]
[422800453,1779415833000,-500.0,0.00013699,2]
[422800478,1779415833000,-500.0,0.00013699,2]
[422800477,1779415833000,-500.0,0.00013699,2]
[422800482,1779415833000,-504.9957341,0.00013699,2]
[422800479,1779415833000,-500.0,0.00013699,2]
[422800484,1779415833000,-1350.0600329,0.000137,2]
[422800485,1779415833000,-200.0,0.000137,2]
[422800475,1779415833000,-500.0,0.00013699,2]
[422800480,1779415833000,-501.85766968,0.00013699,2]
[422800481,1779415833000,-504.06953205,0.00013699,2]
[422800483,1779415833000,-260.0,0.000137,2]
[422800487,1779415833000,-183.50035497,0.000137,2]
[422800486,1779415833000,-200.0,0.000137,2]
[422800490,1779415833000,-37573.93808777,0.000137,2]
[422800488,1779415833000,-151.56096587,0.000137,2]
[422800495,1779415833000,-7393.85317137,0.000137,2]
[422800493,1779415833000,-1254.09285305,0.000137,2]
[422800489,1779415833000,-20350.44367551,0.000137,2]
[422800492,1779415833000,-688.58850667,0.000137,2]
[422800491,1779415833000,-3383.42896817,0.000137,2]
[422800452,1779415833000,-500.0,0.00013699,2]
[422800474,1779415833000,-500.0,0.00013699,2]
[422800476,1779415833000,-500.0,0.00013699,2]
[422800467,1779415833000,-500.0,0.00013699,2]
[422800448,1779415833000,-543.45014314,0.00013699,2]
[422800451,1779415833000,-500.0,0.00013699,2]
[422800450,1779415833000,-500.0,0.00013699,2]
[422800455,1779415833000,-500.0,0.00013699,2]
[422800454,1779415833000,-500.0,0.00013699,2]
[422800459,1779415833000,-500.0,0.00013699,2]
[422800494,1779415833000,-14008.45535382,0.000137,2]
[422800461,1779415833000,-175.81974779,0.00013699,2]
[422800466,1779415833000,-500.0,0.00013699,2]
[422800472,1779415833000,-500.0,0.00013699,2]
[422800473,1779415833000,-426.2770464,0.00013699,2]
[422800460,1779415833000,-613.88342704,0.00013699,2]
[422800462,1779415833000,-500.0,0.00013699,2]
[422800468,1779415833000,-500.0,0.00013699,2]
[422800469,1779415833000,-500.0,0.00013699,2]
[422800464,1779415833000,-500.0,0.00013699,2]
[422800470,1779415833000,-500.0,0.00013699,2]
[422800463,1779415833000,-500.0,0.00013699,2]
[422800465,1779415833000,-500.0,0.00013699,2]
[422800471,1779415833000,-500.0,0.00013699,2]
[422800496,1779415834000,-8045.54526625,0.000137,2]
[422800497,1779415838000,-4716.83026371,0.000137,2]
[422800499,1779415838000,-166109.14863566,0.000137,2]
[422800498,1779415838000,-44700.0,0.000137,2]
[422800501,1779415838000,-6275.55825757,0.000137,2]
[422800503,1779415838000,-2774.49316287,0.000137,2]
[422800502,1779415838000,-7065.62967323,0.000137,2]
[422800500,1779415838000,-5886.54546203,0.000137,2]
[422800573,1779415840000,-292.40526045,0.000137,2]
[422800586,1779415843000,-3455.85415716,0.000137,2]
[422800585,1779415843000,-772.21926914,0.000137,2]
[422800587,1779415843000,-1023421.06536924,0.000137,2]
[422800590,1779415843000,-7766.5873367,0.000137,2]
[422800588,1779415843000,-403888.3361381,0.000137,2]
[422800591,1779415843000,-3121.27845203,0.000137,2]
[422800589,1779415843000,-110594.08516147,0.000137,2]
[422800606,1779415846000,-12106.79133356,0.000137,2]
[422800605,1779415846000,-298.34,0.000137,2]
[422800811,1779416949000,-193.0,7.26e-05,2]
[422800810,1779416949000,-157.17,6.6e-05,2]
[422800812,1779416949000,-339.37035117,7.26e-05,2]
[422800815,1779416949000,-157.17,9.136e-05,2]
[422800813,1779416949000,-157.17,7.868e-05,2]
[422800814,1779416949000,-332.48804878,8.253e-05,2]
[422800816,1779416949000,-157.17,0.00010404,2]
[422800817,1779416949000,-198.92145044,0.000112,5]
[422800818,1779417008000,5322.0,0.00011,5]
[422800843,1779417032000,-182.82,0.00012399,2]
[422800839,1779417032000,-164.81804905,0.00012308,2]
[422800837,1779417032000,-174.15,0.00012281,2]
[422800845,1779417032000,-161.24584032,0.00012588,5]
[422800844,1779417032000,-166.98,0.00012585,2]
[422800851,1779417032000,-214.1,0.00012967,2]
[422800847,1779417032000,-200.0,0.00012634,2]
[422800841,1779417032000,-150.0,0.00012344,2]
[422800852,1779417032000,-1777.27,0.00012999,2]
[422800855,1779417032000,-201.88,0.00013298,2]
[422800854,1779417032000,-166.98,0.00013278,2]
[422800849,1779417032000,-158.72,0.00012708,2]
[422800835,1779417032000,-15466.91,0.00012213,2]
[422800823,1779417032000,-157.17,0.00011672,2]
[422800831,1779417032000,-300.0,0.00012212,2]
[422800832,1779417032000,-300.0,0.00012212,2]
[422800828,1779417032000,-163.5534831,0.00012152,2]
[422800830,1779417032000,-347.0,0.00012212,2]
[422800826,1779417032000,-4795.14,0.00012128,2]
[422800829,1779417032000,-545.47,0.00012191,2]
[422800827,1779417032000,-455.34,0.00012148,2]
[422800825,1779417032000,-1240.7,0.00012047,2]
[422800824,1779417032000,-1200.0,0.00012046,2]
[422800822,1779417032000,-500.0,0.00011497,2]
[422800821,1779417032000,-250.67125109,0.00011189,2]
[422800820,1779417032000,-250.0,0.00011189,2]
[422800819,1779417032000,-568.47568301,0.00011189,2]
[422800833,1779417032000,-159.0,0.00012212,2]
[422800863,1779417032000,-1262.85,0.00013397,2]
[422800850,1779417032000,-157.17,0.0001294,2]
[422800853,1779417032000,-1680.0,0.00013251,2]
[422800862,1779417032000,-150.0,0.00013356,2]
[422800886,1779417032000,-260.9446165,0.00013425,2]
[422800887,1779417032000,-150.0,0.00013425,2]
[422800885,1779417032000,-150.0,0.00013425,2]
[422800888,1779417032000,-339.25904319,0.00013425,2]
[422800884,1779417032000,-150.0,0.00013425,2]
[422800882,1779417032000,-500.0,0.00013425,2]
[422800881,1779417032000,-500.0,0.00013425,2]
[422800878,1779417032000,-500.0,0.00013425,2]
[422800880,1779417032000,-500.0,0.00013425,2]
[422800879,1779417032000,-500.0,0.00013425,2]
[422800874,1779417032000,-500.0,0.00013425,2]
[422800877,1779417032000,-500.0,0.00013425,2]
[422800875,1779417032000,-500.0,0.00013425,2]
[422800883,1779417032000,-500.0,0.00013425,2]
[422800876,1779417032000,-500.0,0.00013425,2]
[422800873,1779417032000,-500.0,0.00013425,2]
[422800865,1779417032000,-233.0,0.00013403,2]
[422800861,1779417032000,-500.0,0.00013356,2]
[422800857,1779417032000,-500.0,0.00013356,2]
[422800864,1779417032000,-420.0,0.00013403,2]
[422800867,1779417032000,-500.0,0.00013425,2]
[422800859,1779417032000,-1000.0,0.00013356,2]
[422800868,1779417032000,-500.0,0.00013425,2]
[422800870,1779417032000,-500.0,0.00013425,2]
[422800869,1779417032000,-500.0,0.00013425,2]
[422800871,1779417032000,-500.0,0.00013425,2]
[422800872,1779417032000,-500.0,0.00013425,2]
[422800866,1779417032000,-500.0,0.00013425,2]
[422800908,1779417033000,-218.56517935,0.00013699,2]
[422800912,1779417033000,-500.0,0.00013699,2]
[422800904,1779417033000,-6081.0,0.00013671,2]
[422800905,1779417033000,-177.70038551,0.0001369,2]
[422800910,1779417033000,-500.0,0.00013699,2]
[422800911,1779417033000,-500.0,0.00013699,2]
[422800919,1779417033000,-500.0,0.00013699,2]
[422800914,1779417033000,-500.0,0.00013699,2]
[422800915,1779417033000,-500.0,0.00013699,2]
[422800918,1779417033000,-500.0,0.00013699,2]
[422800917,1779417033000,-500.0,0.00013699,2]
[422800920,1779417033000,-500.0,0.00013699,2]
[422800906,1779417033000,-151.0,0.00013697,2]
[422800913,1779417033000,-500.0,0.00013699,2]
[422800903,1779417033000,-181.51002861,0.00013614,2]
[422800892,1779417033000,-500.0,0.00013425,2]
[422800901,1779417033000,-293.68282276,0.000136,2]
[422800902,1779417033000,-207.394477,0.00013614,2]
[422800907,1779417033000,-500.0,0.00013699,2]
[422800900,1779417033000,-4616.92392128,0.000136,2]
[422800897,1779417033000,-190.61445854,0.000136,2]
[422800899,1779417033000,-173.033,0.000136,2]
[422800898,1779417033000,-1924.768,0.000136,2]
[422800896,1779417033000,-150.0,0.00013488,2]
[422800893,1779417033000,-430.08185109,0.00013425,2]
[422800895,1779417033000,-259.14028262,0.00013488,2]
[422800894,1779417033000,-150.0,0.00013488,2]
[422800891,1779417033000,-500.0,0.00013425,2]
[422800889,1779417033000,-500.0,0.00013425,2]
[422800916,1779417033000,-500.0,0.00013699,2]
[422800909,1779417033000,-500.0,0.00013699,2]
[422800921,1779417033000,-500.0,0.00013699,2]
[422800890,1779417033000,-188.08786119,0.00013425,2]
[422800923,1779417033000,-500.0,0.00013699,2]
[422800922,1779417033000,-500.0,0.00013699,2]
[422800954,1779417033000,-169574.91499472,0.000137,2]
[422800951,1779417033000,-1436.975683,0.000137,2]
[422800952,1779417033000,-35843.5109859,0.000137,2]
[422800953,1779417033000,-2898.5868306,0.000137,2]
[422800950,1779417033000,-200.0,0.000137,2]
[422800948,1779417033000,-1032.52,0.000137,2]
[422800949,1779417033000,-200.0,0.000137,2]
[422800946,1779417033000,-22586.6647772,0.000137,2]
[422800944,1779417033000,-421.7338956,0.00013699,2]
[422800945,1779417033000,-183.50035497,0.000137,2]
[422800942,1779417033000,-500.0,0.00013699,2]
[422800943,1779417033000,-525.73805398,0.00013699,2]
[422800940,1779417033000,-422.68160814,0.00013699,2]
[422800935,1779417033000,-500.0,0.00013699,2]
[422800947,1779417033000,-2023.683819,0.000137,2]
[422800939,1779417033000,-500.0,0.00013699,2]
[422800924,1779417033000,-500.0,0.00013699,2]
[422800928,1779417033000,-500.0,0.00013699,2]
[422800929,1779417033000,-500.0,0.00013699,2]
[422800925,1779417033000,-500.0,0.00013699,2]
[422800926,1779417033000,-500.0,0.00013699,2]
[422800931,1779417033000,-500.0,0.00013699,2]
[422800930,1779417033000,-500.0,0.00013699,2]
[422800932,1779417033000,-500.0,0.00013699,2]
[422800934,1779417033000,-621.85651794,0.00013699,2]
[422800933,1779417033000,-500.0,0.00013699,2]
[422800941,1779417033000,-509.11252788,0.00013699,2]
[422800938,1779417033000,-363.54269718,0.00013699,2]
[422800936,1779417033000,-312.62505951,0.00013699,2]
[422800927,1779417033000,-500.0,0.00013699,2]
[422800937,1779417033000,-309.88449683,0.00013699,2]
[422800964,1779417038000,-1314.94699861,0.000137,2]
[422800963,1779417038000,-618.5,0.000137,2]
[422800985,1779417357000,152.0,9.112e-05,7]
[422800988,1779417932000,-191.03090162,0.00011975,2]
[422800989,1779417932000,-8.34912416,0.00012174,2]
[422800990,1779417934000,-182.65792935,0.00012174,2]
[422800991,1779417956000,152.0,9.118e-05,7]
[422800994,1779418156000,-273.63673957,9.78e-05,2]
[422800995,1779418156000,-73.4948541,9.78e-05,2]
[422800992,1779418156000,-2552.174589,7.945e-05,2]
[422800993,1779418156000,-250.0,8.74e-05,2]
[422800998,1779418221000,150.0,0.00011595,120]
[422801018,1779418231000,-308.99294649,0.00011684,2]
[422801016,1779418231000,-210.37743029,0.00011614,2]
[422801014,1779418231000,-97286.24,0.00011606,2]
[422801015,1779418231000,-200.0,0.00011606,2]
[422801011,1779418231000,-2000.0,0.00011555,2]
[422801017,1779418231000,-250.0,0.00011653,2]
[422801012,1779418231000,-2132.52,0.00011584,2]
[422801009,1779418231000,-552.3873477,0.000115,2]
[422801008,1779418231000,-534.20501834,0.000115,2]
[422801013,1779418231000,-150.0,0.00011595,2]
[422801020,1779418231000,-442.93,0.000117,2]
[422801010,1779418231000,-1229.21449939,0.000115,2]
[422801023,1779418231000,-150.0,0.00011714,2]
[422801019,1779418231000,-161.91,0.00011692,2]
[422801033,1779418231000,-620.35,0.00012271,2]
[422801035,1779418231000,-8530.06881952,0.00012296,2]
[422801029,1779418231000,-8880.33268019,0.00011924,2]
[422801027,1779418231000,-300.0,0.00011923,2]
[422801031,1779418231000,-2132.52,0.00012163,2]
[422801021,1779418231000,-1000.0,0.00011702,2]
[422801026,1779418231000,-2132.52,0.00011873,2]
[422801024,1779418231000,-186.3,0.00011722,2]
[422801025,1779418231000,-262.58,0.00011722,2]
[422801028,1779418231000,-1200.0,0.00011923,2]
[422801076,1779418232000,-165.91396287,0.00012536,2]
[422801078,1779418232000,-150.0,0.00012548,2]
[422801081,1779418232000,-165.91396287,0.00012564,2]
[422801077,1779418232000,-221.12,0.00012543,2]
[422801075,1779418232000,-3747.91523014,0.00012527,2]
[422801070,1779418232000,-150.0,0.00012493,2]
[422801071,1779418232000,-165.91396287,0.00012495,2]
[422801074,1779418232000,-165.91396287,0.00012522,2]
[422801073,1779418232000,-150.0,0.00012511,2]
[422801079,1779418232000,-165.91396287,0.0001255,2]
[422801072,1779418232000,-165.91396287,0.00012509,2]
[422801080,1779418232000,-150.0,0.00012557,2]
[422801089,1779418232000,-165.91396287,0.00012606,2]
[422801082,1779418232000,-150.0,0.00012578,2]
[422801084,1779418232000,-535.36,0.00012587,2]
[422801088,1779418232000,-150.0,0.00012603,2]
[422801086,1779418232000,-166.67,0.00012594,2]
[422801066,1779418232000,-165.91396287,0.00012467,2]
[422801085,1779418232000,-165.91396287,0.00012592,2]
[422801087,1779418232000,-150.0,0.00012603,2]
[422801090,1779418232000,-500.0,0.00012617,2]
[422801091,1779418232000,-150.0,0.00012617,2]
[422801092,1779418232000,-165.91396287,0.00012619,2]
[422801093,1779418232000,-451.068322,0.00012633,2]
[422801094,1779418232000,-165.91396287,0.00012633,2]
[422801095,1779418232000,-165.91396287,0.00012647,2]
[422801083,1779418232000,-165.91396287,0.00012578,2]
[422801068,1779418232000,-165.91396287,0.00012481,2]
[422801060,1779418232000,-150.0,0.00012438,2]
[422801067,1779418232000,-11070.52433985,0.00012475,2]
[422801096,1779418232000,-31288.56,0.00012649,2]
[422801038,1779418232000,-150.0,0.00012329,2]
[422801039,1779418232000,-150.32786046,0.00012329,2]
[422801040,1779418232000,-150.1045633,0.00012329,2]
[422801042,1779418232000,-150.0,0.00012329,2]
[422801044,1779418232000,-150.0,0.00012329,2]
[422801045,1779418232000,-150.35471604,0.00012329,2]
[422801049,1779418232000,-165.91396287,0.00012343,2]
[422801048,1779418232000,-165.91396287,0.00012329,2]
[422801047,1779418232000,-150.0,0.00012329,2]
[422801050,1779418232000,-165.91396287,0.00012356,2]
[422801046,1779418232000,-150.0,0.00012329,2]
[422801069,1779418232000,-150.0,0.00012493,2]
[422801051,1779418232000,-165.91396287,0.0001237,2]
[422801052,1779418232000,-6916.17,0.00012372,2]
[422801055,1779418232000,-165.91396287,0.00012398,2]
[422801054,1779418232000,-165.91396287,0.00012384,2]
[422801056,1779418232000,-30758.60417504,0.00012406,2]
[422801057,1779418232000,-165.91396287,0.00012412,2]
[422801058,1779418232000,-150.0,0.0001242,2]
[422801059,1779418232000,-165.91396287,0.00012426,2]
[422801061,1779418232000,-165.91396287,0.00012439,2]
[422801063,1779418232000,-2132.52,0.00012452,2]
[422801062,1779418232000,-695.84,0.00012451,2]
[422801064,1779418232000,-165.91396287,0.00012453,2]
[422801065,1779418232000,-150.0,0.00012453,2]
[422801053,1779418232000,-150.0,0.00012384,2]
[422801098,1779418232000,-165.91396287,0.00012661,2]
[422801141,1779418232000,-150.0,0.00012968,2]
[422801101,1779418232000,-150.0,0.00012694,2]
[422801130,1779418232000,-150.0,0.00012877,2]
[422801132,1779418232000,-500.0,0.00012891,2]
[422801133,1779418232000,-165.91396287,0.00012896,2]
[422801134,1779418232000,-165.91396287,0.0001291,2]
[422801136,1779418232000,-150.0,0.00012932,2]
[422801139,1779418232000,-165.91396287,0.00012951,2]
[422801137,1779418232000,-165.91396287,0.00012938,2]
[422801135,1779418232000,-165.91396287,0.00012924,2]
[422801157,1779418232000,-165.91396287,0.0001309,2]
[422801138,1779418232000,-150.0,0.00012951,2]
[422801140,1779418232000,-165.91396287,0.00012965,2]
[422801142,1779418232000,-165.91396287,0.00012979,2]
[422801129,1779418232000,-275.36,0.00012877,2]
[422801143,1779418232000,-150.0,0.00012986,2]
[422801144,1779418232000,-165.91396287,0.00012993,2]
[422801148,1779418232000,-150.0,0.00013014,2]
[422801147,1779418232000,-150.0,0.00013014,2]
[422801146,1779418232000,-165.91396287,0.00013007,2]
[422801149,1779418232000,-165.91396287,0.00013021,2]
[422801150,1779418232000,-165.91396287,0.00013034,2]
[422801151,1779418232000,-150.0,0.00013041,2]
[422801153,1779418232000,-150.0,0.00013059,2]
[422801152,1779418232000,-165.91396287,0.00013048,2]
[422801155,1779418232000,-150.0,0.00013076,2]
[422801154,1779418232000,-165.91396287,0.00013062,2]
[422801097,1779418232000,-150.0,0.00012658,2]
[422801145,1779418232000,-2000.0,0.00013,2]
[422801131,1779418232000,-165.91396287,0.00012882,2]
[422801156,1779418232000,-165.91396287,0.00013076,2]
[422801127,1779418232000,-165.91396287,0.00012868,2]
[422801104,1779418232000,-1359.469323,0.0001271,2]
[422801099,1779418232000,-165.91396287,0.00012675,2]
[422801102,1779418232000,-165.91396287,0.00012702,2]
[422801100,1779418232000,-165.91396287,0.00012689,2]
[422801103,1779418232000,-150.0,0.00012702,2]
[422801105,1779418232000,-150.0,0.00012712,2]
[422801106,1779418232000,-165.91396287,0.00012716,2]
[422801124,1779418232000,-165.91396287,0.00012827,2]
[422801109,1779418232000,-2132.52,0.00012742,2]
[422801107,1779418232000,-1118.567548,0.00012727,2]
[422801112,1779418232000,-165.91396287,0.00012758,2]
[422801110,1779418232000,-165.91396287,0.00012744,2]
[422801111,1779418232000,-447.361289,0.00012753,2]
[422801108,1779418232000,-165.91396287,0.0001273,2]
[422801115,1779418232000,-250.0,0.00012775,2]
[422801123,1779418232000,-150.0,0.00012827,2]
[422801113,1779418232000,-150.0,0.00012767,2]
[422801125,1779418232000,-165.91396287,0.00012841,2]
[422801128,1779418232000,-150.0,0.00012877,2]